fUSD/lending_fUSD_20240611
["ID","MTS","AMOUNT","RATE_DAILY","PERIOD"]
[329136449,1718130638820,-1367.74,0.00013718,2]
[329136450,1718130638831,-152.89430418,0.00013834,2]
[329136451,1718130638841,-219.65,0.0001389,4]
[329136452,1718130638852,-358.20152403,0.00014,2]
[329136453,1718130638863,-174.25,0.00014098,2]
[329136454,1718130638873,-744.88172738,0.00014325,2]
[329136455,1718130638883,-293.0,0.00014519,2]
[329136456,1718130638895,-293.0,0.00014519,2]
[329136457,1718130638905,-751.9144439,0.0001455,2]
[329136458,1718130638916,-174.79,0.00014904,5]
[329136459,1718130638927,-200.0,0.00015,2]
[329136460,1718130638939,-152.89430418,0.00015744,2]
[329136461,1718130638951,-568.46,0.00015926,2]
[329136462,1718130638962,-155.94476457,0.00016284,2]
[329136463,1718130638973,-155.32571836,0.00016436,2]
[329136464,1718130638983,-744.88172738,0.00016749,2]
[329136465,1718130638994,-500.0,0.000171,2]
[329136467,1718130639004,-432.6,0.00017106,2]
[329136469,1718130639016,-150.0,0.00017145,2]
[329136471,1718130639026,-200.0,0.00017195,2]
[329136473,1718130639038,-250.0,0.00017204,2]
[329136475,1718130639049,-250.0,0.00017255,2]
[329136477,1718130639061,-441.49458652,0.00017259,2]
[329136479,1718130639073,-499.99,0.00017259,2]
[329136481,1718130639084,-154.9,0.00017259,2]
[329136483,1718130639096,-200.0,0.00017267,2]
[329136485,1718130639107,-167.5,0.00017319,2]
[329136487,1718130639118,-500.0,0.00017336,2]
[329136489,1718130639129,-430.87,0.00017428,2]
[329136491,1718130639140,-200.0,0.00017435,2]
[329136493,1718130639151,-904.56,0.00017504,2]
[329136494,1718130639162,-164.21,0.00017601,2]
[329136495,1718130639176,-164.36,0.00017622,2]
[329136497,1718130639189,-164.36,0.00017644,2]
[329136499,1718130639203,-152.89430418,0.00017653,2]
[329136501,1718130639213,-2751.0,0.00017665,2]
[329136503,1718130639224,-164.36,0.00017666,2]
[329136505,1718130639235,-164.36,0.00017688,2]
[329136507,1718130639247,-152.01,0.00017689,2]
[329136509,1718130639258,-167.2,0.00017694,2]
[329136511,1718130639269,-3750.35,0.00017699,2]
[329136512,1718130639281,-164.36,0.0001771,2]
[329136513,1718130639292,-23900.0,0.00017738,2]
[329136514,1718130639303,-2405.81,0.00017759,2]
[329136515,1718130639314,-282.84,0.00017905,2]
[329136516,1718130639325,-166.23,0.00018003,2]
[329136517,1718130639335,-1235.15,0.0001812,2]
[329136518,1718130639346,-4123.2,0.00018139,2]
[329136519,1718130639356,-568.46,0.0001819,2]
[329136520,1718130639367,-462.42,0.00018386,2]
[329136521,1718130639378,-462.42,0.00018436,2]
[329136522,1718130639389,-164.21,0.00018481,2]
[329136523,1718130639401,-462.42,0.00018487,2]
[329136524,1718130639412,-462.42,0.00018537,2]
[329136525,1718130639423,-462.42,0.00018587,2]
[329136526,1718130639434,-462.42,0.00018638,2]
[329136527,1718130639446,-1000.0,0.00018638,2]
[329136528,1718130639458,-462.42,0.00018688,2]
[329136529,1718130639481,-496.71238512,0.00018688,2]
[329136530,1718130639492,-462.42,0.00018739,2]
[329136531,1718130639503,-462.42,0.00018789,2]
[329136532,1718130639515,-462.42,0.00018839,2]
[329136533,1718130639525,-462.42,0.0001889,2]
[329136534,1718130639537,-462.42,0.0001894,2]
[329136535,1718130639548,-233.72586596,0.00018988,2]
[329136536,1718130639562,-752.03196948,0.00018988,2]
[329136537,1718130639573,-462.42,0.00018991,2]
[329136538,1718130639583,-156.91,0.00019041,2]
[329136539,1718130639595,-462.42,0.00019041,2]
[329136540,1718130639608,-156.91,0.00019088,2]
[329136541,1718130639618,-462.42,0.00019091,2]
[329136542,1718130639629,-156.91,0.00019136,2]
[329136543,1718130639641,-462.42,0.00019142,2]
[329136544,1718130639654,-167.2,0.00019155,2]
[329136545,1718130639665,-744.88172738,0.00019174,2]
[329136546,1718130639676,-473.3626991,0.00019178,2]
[329136547,1718130639688,-500.0,0.00019178,2]
[329136548,1718130639701,-500.0,0.00019178,2]
[329136549,1718130639713,-500.0,0.00019178,2]
[329136550,1718130639724,-632.4545019,0.00019178,2]
[329136551,1718130639736,-380.0,0.00019178,2]
[329136552,1718130639746,-192.16750045,0.00019178,2]
[329136553,1718130639757,-536.71358025,0.00019178,2]
[329136554,1718130639768,-200.62290041,0.00019178,7]
[329136555,1718130639779,-462.42,0.00019192,2]
[329136556,1718130639789,-462.42,0.00019243,2]
[329136557,1718130639800,-462.42,0.00019293,2]
[329136558,1718130639812,-172.52,0.00019331,2]
[329136559,1718130639823,-462.42,0.00019344,2]
[329136560,1718130639834,-164.21,0.00019361,2]
[329136561,1718130639846,-155.94476457,0.00019462,2]
[329136562,1718130639858,-152.89430418,0.00019563,2]
[329136563,1718130639870,-221.03,0.00019763,2]
[329136564,1718130639885,-1796.28532413,0.00019843,2]
[329136565,1718130639897,-159.606,0.00019969,2]
[329136566,1718130639908,-351.84654694,0.0002,2]
[329136567,1718130639919,-11544.0,0.0002,2]
[329136568,1718130639931,-155.0,0.0002,2]
[329136569,1718130639942,-504.73235724,0.0002,2]
[329136570,1718130639955,-159.606,0.0002006,2]
[329136571,1718130639966,-318.98174811,0.00020098,2]
[329136572,1718130639977,-164.74503866,0.00020098,2]
[329136573,1718130639988,-226.7178388,0.000201,2]
[329136574,1718130639999,-159.606,0.00020151,2]
[329136575,1718130640011,-747.0,0.000202,2]
[329136576,1718130640022,-243.0,0.000202,2]
[329136577,1718130640033,-2584.03632013,0.00020239,2]
[329136578,1718130640045,-164.21,0.00020241,2]
[329136579,1718130640056,-159.606,0.00020243,2]
[329136580,1718130640067,-159.606,0.00020335,2]
[329136581,1718130640079,-167.3,0.00020339,2]
[329136582,1718130640090,-568.46,0.00020454,2]
[329136583,1718130640102,-2374.55899287,0.00020498,2]
[329136584,1718130640114,-2405.81,0.00020499,2]
[329136585,1718130640126,-950.28630365,0.00020499,2]
[329136586,1718130640138,-429.4877479,0.00020499,2]
[329136587,1718130640152,-455.31722707,0.00020499,2]
[329136588,1718130640165,-11740.0,0.000205,3]
[329136589,1718130640178,-1321.66141236,0.00020558,2]
[329136590,1718130640712,-1262.37490774,0.00020558,2]
[329136591,1718130640724,-167.2,0.00020615,2]
[329136592,1718130640736,-215.85618551,0.00020742,2]
[329136593,1718130640747,-3083.24123906,0.00020742,2]
[329136594,1718130640760,-3019.89366035,0.00020742,2]
[329136595,1718130640772,-221.03,0.00020751,2]
[329136596,1718130640783,-413.08,0.00020797,2]
[329136597,1718130640795,-1499.34,0.00020797,2]
[329136598,1718130640806,-417.53,0.00020797,2]
[329136599,1718130640817,-415.0,0.00020797,2]
[329136600,1718130640829,-2584.0363201,0.00020877,2]
[329136601,1718130640842,-1000.0,0.00020968,2]
[329136602,1718130640853,-339.48661877,0.00020998,2]
[329136603,1718130640864,-718.98943569,0.00020999,2]
[329136604,1718130640875,-481.22872936,0.00020999,2]
[329136605,1718130640887,-11740.0,0.00021,5]
[329136606,1718130640898,-166.23,0.00021003,2]
[329136607,1718130640909,-164.21,0.00021121,2]
[329136608,1718130640919,-2584.0363201,0.00021196,2]
[329136609,1718130640930,-3709.20765049,0.00021398,2]
[329136610,1718130640941,-488.83889264,0.00021399,2]
[329136612,1718130640954,-525.24750184,0.00021399,2]
[329136614,1718130640965,-806.25723157,0.00021399,2]
[329136615,1718130640976,-344.91516127,0.000214,7]
[329136618,1718130640989,-1055.08483873,0.000214,7]
[329136619,1718130641000,-152.01,0.00021469,2]
[329136621,1718130641011,-152.89430418,0.00021472,2]
[329136622,1718130641021,-1000.0,0.00021472,2]
[329136623,1718130641033,-1056.10246727,0.00021479,2]
[329136624,1718130641269,-692.52605182,0.00021479,2]
[329136625,1718130641283,-608.037639,0.00021479,2]
[329136626,1718130641294,-2900.0,0.000215,7]
[329136627,1718130641305,-2584.0363201,0.00021515,2]
[329136628,1718130641316,-152.01,0.00021564,2]
[329136629,1718130641327,-204.99679615,0.0002157,2]
[329136630,1718130641338,-238.25486485,0.0002157,2]
[329136631,1718130641349,-531.15011943,0.00021571,2]
[329136632,1718130641359,-1000.0,0.00021571,2]
[329136633,1718130641371,-300.26256709,0.00021571,2]
[329136634,1718130641382,-525.50104401,0.00021571,2]
[329136635,1718130641393,-3024.58940129,0.00021571,2]
[329136636,1718130641404,-2786.32623842,0.00021571,2]
[329136637,1718130641415,-3793.24660495,0.00021571,2]
[329136638,1718130641426,-615.4421,0.00021572,2]
[329136639,1718130641438,-3767.18954237,0.00021572,2]
[329136640,1718130641451,-25302.89219258,0.00021572,2]
[329136641,1718130641479,-50605.78438515,0.00021573,2]
[329136642,1718130641490,-25302.89219258,0.00021574,2]
[329136643,1718130641501,-388.42628005,0.00021579,2]
[329136644,1718130641512,-25302.89219258,0.0002158,2]
[329136645,1718130641523,-25302.89219258,0.00021584,2]
[329136646,1718130641534,-25302.89219258,0.00021586,2]
[329136647,1718130641545,-152.01,0.00021589,2]
[329136648,1718130641557,-25302.89219258,0.00021593,2]
[329136649,1718130641570,-2612.92818027,0.00021593,2]
[329136650,1718130641581,-2818.78145721,0.00021596,2]
[329136651,1718130641593,-744.88172738,0.00021598,2]
[329136652,1718130641606,-209.92652988,0.00021599,2]
[329136653,1718130641617,-25302.89219258,0.00021599,2]
[329136654,1718130641628,-4300.0,0.000216,7]
[329136655,1718130641639,-24521.64675144,0.00021604,2]
[329136656,1718130641724,-0.02591519,0.00021604,2]
[329136657,1718130641738,-4749.86869948,0.00021604,2]
[329136658,1718130641787,-18049.5,0.00021604,2]
[329136659,1718130641801,-3284.74301904,0.00021604,2]
[329136660,1718130641812,-2818.78145721,0.00021614,2]
[329136661,1718130641825,-152.01,0.00021617,2]
[329136662,1718130641837,-50605.78438515,0.00021617,2]
[329136663,1718130641848,-25302.89219258,0.00021627,2]
[329136664,1718130641859,-2818.78145721,0.00021627,2]
[329136665,1718130641870,-209.92652988,0.0002163,2]
[329136666,1718130641881,-25302.89219258,0.00021636,2]
[329136667,1718130641892,-152.01,0.00021637,2]
[329136668,1718130641903,-330.9619,0.0002164,2]
[329136669,1718130641915,-1373.6651,0.0002164,2]
[329136670,1718130641925,-1416.216,0.0002164,2]
[329136671,1718130642167,-50605.78438515,0.00021646,2]
[329136672,1718130642179,-50605.78438515,0.00021647,2]
[329136673,1718130642190,-388.42628004,0.00021648,2]
[329136674,1718130642201,-167.5,0.00021649,2]
[329136675,1718130642213,-2818.78145721,0.00021653,2]
[329136676,1718130642224,-412.75360643,0.00021658,2]
[329136677,1718130642235,-209.92652988,0.00021659,2]
[329136678,1718130642248,-209.92652988,0.00021663,2]
[329136679,1718130642260,-743.18044332,0.0002167,2]
[329136680,1718130642272,-2818.78145721,0.00021673,2]
[329136681,1718130642284,-209.92652988,0.00021678,2]
[329136682,1718130642295,-25302.89219258,0.00021678,2]
[329136683,1718130642306,-209.92652988,0.00021679,2]
[329136684,1718130642317,-2356.66615809,0.00021684,2]
[329136685,1718130642330,-152.01,0.00021686,2]
[329136686,1718130642341,-50605.78438515,0.00021694,2]
[329136687,1718130642353,-25302.89219258,0.00021694,2]
[329136688,1718130642364,-25302.89219258,0.00021696,2]
[329136689,1718130642376,-1240.14659888,0.00021697,5]
[329136690,1718130642388,-2818.78145721,0.00021698,2]
[329136691,1718130642399,-5800.0,0.000217,7]
[329136692,1718130642410,-2221.46402,0.000217,2]
[329136693,1718130642422,-6365.2337,0.00021717,2]
[329136694,1718130642434,-829.38072415,0.00021717,2]
[329136695,1718130642445,-7500.0,0.00021717,2]
[329136696,1718130642461,-173.30371156,0.00021717,2]
[329136697,1718130642482,-188.80861575,0.00021717,2]
[329136698,1718130642495,-388.42628004,0.00021717,2]
[329136699,1718130642507,-5770.66529607,0.00021717,2]
[329136700,1718130642519,-221.03,0.00021739,2]
[329136701,1718130642530,-19970.24,0.00021757,2]
[329136702,1718130642541,-3362.25,0.00021757,2]
[329136703,1718130642553,-9036.77444053,0.00021757,2]
[329136704,1718130643146,-1319.22040606,0.00021757,2]
[329136705,1718130643160,-1679.60587481,0.00021757,2]
[329136706,1718130643174,-594.77984122,0.00021757,2]
[329136707,1718130643419,-13069.30943738,0.00021757,2]
[329136708,1718130643430,-3727.189,0.00021786,2]
[329136709,1718130643441,-7200.0,0.000218,7]
[329136710,1718130643452,-1234.0,0.000218,2]
[329136711,1718130643477,-152.01,0.00021807,2]
[329136712,1718130643488,-152.01,0.00021807,2]
[329136713,1718130643498,-152.01,0.00021807,2]
[329136714,1718130643510,-155.0,0.00021815,2]
[329136715,1718130643521,-2138.57685314,0.00021815,2]
[329136716,1718130643532,-5049.8566397,0.00021815,7]
[329136717,1718130643542,-158.3464596,0.00021816,2]
[329136718,1718130643553,-1403.32727994,0.00021816,2]
[329136719,1718130643572,-1000.0,0.00021817,2]
[329136720,1718130643584,-45892.89823772,0.00021817,2]
[329136735,1718130644074,-200.0,0.00020591,2]
[329136736,1718130644085,-199107.10176228,0.00021817,2]
[329136737,1718130644095,-4891.7275,0.00021817,2]
[329136738,1718130644104,-3162.122,0.00021817,2]
[329136739,1718130644114,-16556.8389,0.00021817,2]
[329136740,1718130644124,-500.0,0.00021817,2]
[329136741,1718130644134,-1000.0,0.00021817,2]
[329136742,1718130644144,-100000.0,0.00021817,2]
[329136743,1718130644154,-10000.0,0.00021817,2]
[329136744,1718130644164,-589.033,0.00021817,2]
[329136745,1718130644174,-196.27434613,0.00021817,2]
[329136746,1718130644184,-343.20148648,0.00021817,2]
[329136747,1718130644195,-300.783705,0.00021817,2]
[329136748,1718130644206,-200.0,0.00021843,2]
[329136749,1718130644217,-3767.18954229,0.00021843,2]
[329136750,1718130644226,-500.0,0.00021877,2]
[329136751,1718130644236,-200.0,0.00021877,2]
[329136752,1718130644247,-500.0,0.00021877,2]
[329136753,1718130644257,-200.0,0.00021877,2]
[329136754,1718130644267,-2356.66615809,0.00021889,2]
[329136755,1718130644278,-800.0,0.0002189,2]
[329136756,1718130644288,-800.0,0.0002189,2]
[329136757,1718130644298,-1400.0,0.000219,7]
[329136758,1718130644308,-1012.0,0.000219,2]
[329136759,1718130644319,-152.01,0.00021905,2]
[329136760,1718130644329,-152.01,0.00021905,2]
[329136761,1718130644339,-152.01,0.00021905,2]
[329136762,1718130644349,-152.01,0.00021907,2]
[329136763,1718130644360,-654.0,0.00021908,2]
[329136764,1718130644370,-199.22,0.0002191,2]
[329136765,1718130644380,-382.96459913,0.00021912,2]
[329136766,1718130644390,-263.8016458,0.00021915,2]
[329136767,1718130644401,-156.5803339,0.00021915,2]
[329136768,1718130644412,-313.14473407,0.00021915,2]
[329136769,1718130644422,-217.32072534,0.00021915,2]
[329136770,1718130644433,-658.7426153,0.00021915,2]
[329136771,1718130644443,-155.0,0.00021915,2]
[329136772,1718130644459,-1251.30968724,0.00021915,2]
[329136773,1718130644474,-156.65439839,0.00021915,2]
[329136774,1718130644485,-643.96114603,0.00021915,2]
[329136775,1718130644495,-241.34819951,0.00021915,2]
[329136776,1718130644504,-788.38657622,0.00021915,2]
[329136777,1718130644514,-155.40225675,0.00021915,2]
[329136778,1718130644524,-5579.5952359,0.00021915,2]
[329136779,1718130644534,-317.57810067,0.00021915,2]
[329136780,1718130644544,-163.21533727,0.00021915,2]
[329136781,1718130644555,-205.76744782,0.00021915,2]
[329136782,1718130644570,-2335.70101797,0.00021915,2]
[329136783,1718130644581,-999.71679158,0.00021915,2]
[329136784,1718130644591,-155.0,0.00021915,2]
[329136785,1718130644603,-539.64542846,0.00021915,2]
[329136786,1718130644613,-76183.65510502,0.00021915,2]
[329136799,1718130645116,-6740.38059999,0.00021915,2]
[329136800,1718130645128,-317.86515181,0.00021915,2]
[329136801,1718130645140,-295.1956128,0.00021915,2]
[329136802,1718130645159,-37105.35087436,0.00021915,2]
[329136808,1718130646977,-1624.04925381,0.00017259,2]
[329136809,1718130646988,-118619.87577815,0.00021915,2]
[329136810,1718130647000,-10485.39364674,0.00021915,2]
[329136811,1718130647013,-23141.15524788,0.00021915,2]
[329136812,1718130647640,-769.14185777,0.00017259,2]
[329136813,1718130647653,-254.25210491,0.00021915,2]
[329136814,1718130647665,-79268.61517615,0.00021915,2]
[329136815,1718130647676,-151.0,0.00021915,2]
[329136816,1718130647687,-151.0,0.00021915,2]
[329136817,1718130647700,-151.0,0.00021915,2]
[329136818,1718130647713,-151.0,0.00021915,2]
[329136819,1718130647725,-151.0,0.00021915,2]
[329136820,1718130647736,-154.929924,0.00021915,2]
[329136821,1718130647747,-285.037062,0.00021915,2]
[329136822,1718130647757,-151.0,0.00021915,2]
[329136823,1718130647771,-151.0,0.00021915,2]
[329136824,1718130647792,-197.475284,0.00021915,2]
[329136825,1718130647814,-197.475284,0.00021915,2]
[329136826,1718130647836,-151.0,0.00021915,2]
[329136827,1718130647853,-151.0,0.00021915,2]
[329136828,1718130647864,-151.0,0.00021915,2]
[329136829,1718130647876,-151.0,0.00021915,2]
[329136830,1718130647888,-151.0,0.00021915,2]
[329136831,1718130647899,-151.0,0.00021915,2]
[329136832,1718130647910,-151.0,0.00021915,2]
[329136833,1718130647921,-151.0,0.00021915,2]
[329136834,1718130647931,-151.0,0.00021915,2]
[329136835,1718130647942,-151.0,0.00021915,2]
[329136836,1718130647952,-151.0,0.00021915,2]
[329136837,1718130647964,-151.0,0.00021915,2]
[329136838,1718130647974,-157.198841,0.00021915,2]
[329136839,1718130647984,-152.259226,0.00021915,2]
[329136840,1718130647995,-172.701558,0.00021915,2]
[329136841,1718130648005,-151.0,0.00021915,2]
[329136842,1718130648015,-165.025997,0.00021915,2]
[329136843,1718130648026,-179.518682,0.00021915,2]
[329136844,1718130648037,-179.518682,0.00021915,2]
[329136845,1718130648048,-151.0,0.00021915,2]
[329136846,1718130648058,-151.0,0.00021915,2]
[329136847,1718130648068,-151.0,0.00021915,2]
[329136848,1718130648079,-2479.531606,0.00021915,2]
[329136849,1718130648089,-1186.22187563,0.00021915,2]
[329136850,1718130648101,-1293.30973037,0.00021915,2]
[329136851,1718130648112,-151.0,0.00021915,2]
[329136852,1718130648122,-151.0,0.00021915,2]
[329136853,1718130648132,-151.0,0.00021915,2]
[329136854,1718130648143,-151.0,0.00021915,2]
[329136855,1718130648153,-151.0,0.00021915,2]
[329136856,1718130648164,-151.0,0.00021915,2]
[329136857,1718130648175,-151.0,0.00021915,2]
[329136858,1718130648186,-151.0,0.00021915,2]
[329136859,1718130648196,-151.0,0.00021915,2]
[329136860,1718130648208,-245.562999,0.00021915,2]
[329136861,1718130648220,-245.562999,0.00021915,2]
[329136862,1718130648231,-151.0,0.00021915,2]
[329136863,1718130648241,-150.0,0.00021916,2]
[329136864,1718130648252,-947.22670795,0.00021917,2]
[329136865,1718130648263,-500.0,0.00021917,2]
[329136866,1718130648273,-257.9877105,0.00021917,2]
[329136867,1718130648284,-500.0,0.00021917,2]
[329136868,1718130648295,-500.0,0.00021917,2]
[329136869,1718130648305,-500.0,0.00021917,2]
[329136870,1718130648317,-500.0,0.00021917,2]
[329136872,1718130648328,-500.0,0.00021917,2]
[329136874,1718130648338,-500.0,0.00021917,2]
[329136876,1718130648348,-500.0,0.00021917,2]
[329136878,1718130648359,-500.0,0.00021917,2]
[329136880,1718130648369,-500.0,0.00021917,2]
[329136882,1718130648379,-369.88748987,0.00021917,2]
[329136884,1718130648389,-500.0,0.00021917,2]
[329136885,1718130648399,-500.0,0.00021917,2]
[329136886,1718130648409,-500.0,0.00021917,2]
[329136887,1718130648419,-567.02,0.00021917,2]
[329136888,1718130648430,-500.0,0.00021917,2]
[329136889,1718130648440,-162.83582415,0.00021917,2]
[329136890,1718130648450,-500.0,0.00021917,2]
[329136891,1718130648475,-500.0,0.00021917,2]
[329136892,1718130648487,-500.0,0.00021917,2]
[329136893,1718130648497,-500.0,0.00021917,2]
[329136894,1718130648508,-500.0,0.00021917,2]
[329136895,1718130648518,-500.0,0.00021917,2]
[329136896,1718130648528,-500.0,0.00021917,2]
[329136897,1718130648539,-500.0,0.00021917,2]
[329136898,1718130648549,-510.49425435,0.00021917,2]
[329136899,1718130648559,-500.0,0.00021917,2]
[329136900,1718130648573,-503.60423357,0.00021917,2]
[329136901,1718130648583,-1002.34,0.00021917,2]
[329136902,1718130648594,-500.0,0.00021917,2]
[329136903,1718130648605,-763.46,0.00021917,2]
[329136904,1718130648616,-500.0,0.00021917,2]
[329136905,1718130648626,-151.0,0.00021917,2]
[329136906,1718130648636,-667.56,0.00021917,2]
[329136907,1718130648651,-512.78,0.00021917,2]
[329136908,1718130648661,-632.63,0.00021917,2]
[329136909,1718130648673,-500.0,0.00021917,2]
[329136910,1718130648683,-500.0,0.00021917,2]
[329136911,1718130648694,-500.0,0.00021917,2]
[329136912,1718130648704,-500.0,0.00021917,2]
[329136913,1718130648715,-500.0,0.00021917,2]
[329136914,1718130648725,-500.0,0.00021917,2]
[329136915,1718130648736,-1336.52,0.00021917,2]
[329136916,1718130648747,-663.03,0.00021917,2]
[329136917,1718130648758,-500.0,0.00021917,2]
[329136918,1718130648768,-500.0,0.00021917,2]
[329136919,1718130648778,-151.0,0.00021917,2]
[329136920,1718130648789,-500.0,0.00021917,2]
[329136921,1718130648799,-510.74724049,0.00021917,2]
[329136922,1718130648809,-500.0,0.00021917,2]
[329136923,1718130648820,-500.0,0.00021917,2]
[329136924,1718130648830,-500.0,0.00021917,2]
[329136925,1718130648840,-500.0,0.00021917,2]
[329136926,1718130648850,-500.0,0.00021917,2]
[329136927,1718130648861,-627.05,0.00021917,2]
[329136928,1718130648871,-500.0,0.00021917,2]
[329136929,1718130648881,-500.0,0.00021917,2]
[329136930,1718130648892,-502.75838647,0.00021917,2]
[329136931,1718130648902,-511.09790935,0.00021917,2]
[329136932,1718130648912,-500.0,0.00021917,2]
[329136933,1718130648923,-500.0,0.00021917,2]
[329136934,1718130648932,-463.22190618,0.00021917,2]
[329136935,1718130648943,-500.0,0.00021917,2]
[329136936,1718130648952,-500.0,0.00021917,2]
[329136937,1718130648961,-500.0,0.00021917,2]
[329136938,1718130648971,-500.0,0.00021917,2]
[329136939,1718130648980,-500.0,0.00021917,2]
[329136940,1718130648990,-500.0,0.00021917,2]
[329136941,1718130649001,-500.0,0.00021917,2]
[329136942,1718130649011,-512.39888493,0.00021917,2]
[329136943,1718130649021,-603.79,0.00021917,2]
[329136944,1718130649031,-500.0,0.00021917,2]
[329136945,1718130649041,-500.0,0.00021917,2]
[329136946,1718130649051,-250.0,0.00021917,2]
[329136947,1718130649060,-500.0,0.00021917,2]
[329136948,1718130649070,-544.78,0.00021917,2]
[329136949,1718130649079,-500.0,0.00021917,2]
[329136950,1718130649090,-500.0,0.00021917,2]
[329136951,1718130649100,-500.0,0.00021917,2]
[329136952,1718130649110,-500.0,0.00021917,2]
[329136953,1718130649120,-535.29,0.00021917,2]
[329136954,1718130649130,-500.0,0.00021917,2]
[329136955,1718130649140,-500.0,0.00021917,2]
[329136956,1718130649150,-500.0,0.00021917,2]
[329136957,1718130649160,-1007.8,0.00021917,2]
[329136958,1718130649171,-155.0,0.00021917,2]
[329136959,1718130649180,-500.0,0.00021917,2]
[329136960,1718130649190,-500.0,0.00021917,2]
[329136961,1718130649200,-500.0,0.00021917,2]
[329136962,1718130649212,-500.0,0.00021917,2]
[329136963,1718130649221,-500.0,0.00021917,2]
[329136964,1718130649232,-500.0,0.00021917,2]
[329136965,1718130649241,-500.0,0.00021917,2]
[329136966,1718130649252,-500.0,0.00021917,2]
[329136967,1718130649262,-500.0,0.00021917,2]
[329136968,1718130649271,-500.0,0.00021917,2]
[329136969,1718130649281,-500.0,0.00021917,2]
[329136970,1718130649292,-166.65449596,0.00021917,2]
[329136971,1718130649302,-500.0,0.00021917,2]
[329136972,1718130649312,-500.0,0.00021917,2]
[329136973,1718130649322,-500.0,0.00021917,2]
[329136974,1718130649332,-500.0,0.00021917,2]
[329136975,1718130649342,-500.0,0.00021917,2]
[329136976,1718130649352,-500.0,0.00021917,2]
[329136977,1718130649362,-500.0,0.00021917,2]
[329136978,1718130649373,-500.0,0.00021917,2]
[329136979,1718130649382,-507.55772202,0.00021917,2]
[329136980,1718130649392,-500.0,0.00021917,2]
[329136981,1718130649402,-500.0,0.00021917,2]
[329136982,1718130649412,-514.1455354,0.00021917,2]
[329136983,1718130649422,-500.0,0.00021917,2]
[329136984,1718130649432,-725.54,0.00021917,2]
[329136985,1718130649442,-500.0,0.00021917,2]
[329136986,1718130649452,-500.0,0.00021917,2]
[329136987,1718130649469,-624.64,0.00021917,2]
[329136988,1718130649482,-500.0,0.00021917,2]
[329136989,1718130649492,-513.57,0.00021917,2]
[329136990,1718130649502,-500.0,0.00021917,2]
[329136991,1718130649512,-577.12248817,0.00021917,2]
[329136992,1718130649522,-500.0,0.00021917,2]
[329136993,1718130649532,-500.0,0.00021917,2]
[329136994,1718130649542,-500.0,0.00021917,2]
[329136995,1718130649553,-500.0,0.00021917,2]
[329136996,1718130649565,-500.0,0.00021917,2]
[329136997,1718130649577,-500.0,0.00021917,2]
[329136998,1718130649587,-500.0,0.00021917,2]
[329136999,1718130649598,-820.75,0.00021917,2]
[329137000,1718130649610,-508.09942469,0.00021917,2]
[329137001,1718130649620,-151.0,0.00021917,2]
[329137002,1718130649630,-500.0,0.00021917,2]
[329137003,1718130649639,-500.0,0.00021917,2]
[329137004,1718130649652,-555.19657261,0.00021917,2]
[329137005,1718130649663,-500.0,0.00021917,2]
[329137006,1718130649673,-500.0,0.00021917,2]
[329137007,1718130649684,-500.0,0.00021917,2]
[329137008,1718130649694,-641.22,0.00021917,2]
[329137009,1718130649705,-500.0,0.00021917,2]
[329137010,1718130649716,-500.0,0.00021917,2]
[329137011,1718130649727,-547.18,0.00021917,2]
[329137012,1718130649737,-500.0,0.00021917,2]
[329137013,1718130649747,-500.0,0.00021917,2]